bitfinex-derivatives/quotes_BTCF0:USTF0_20210105
["timestamp","ask_amount","ask_price","bid_price","bid_amount"]
[1609817501645,0.10228,32007.0,31973.0,4.0069]
[1609817503346,0.10228,32007.0,31985.0,0.13632608]
[1609817503547,0.56721883,32011.0,31973.0,4.0069]
[1609817504547,0.56721883,32011.0,31973.0,4.0998]
[1609817505148,0.56747338,32006.0,31973.0,4.0998]
[1609817505347,0.69740338,32006.0,31981.0,0.13632608]
[1609817505749,0.12993,32006.0,31981.0,0.13632608]
[1609817507250,0.13632608,31982.0,31981.0,0.13632608]
[1609817508253,0.13632608,31982.0,31981.0,0.23112608]
[1609817508452,0.13632608,31982.0,31960.0,3.5634]
[1609817509354,0.14406,31985.0,31961.0,0.13632608]
[1609817510855,0.14406,31985.0,31946.0,4.9599]
[1609817511254,0.13632608,31959.0,31958.0,0.13632608]
[1609817511856,0.13632608,31959.0,31958.0,0.23052608]
[1609817512256,0.13632608,31959.0,31958.0,0.13632608]
[1609817512957,0.10968,31966.0,31958.0,0.13632608]
[1609817513255,0.10968,31966.0,31962.0,0.13632608]
[1609817513457,0.10968,31966.0,31948.0,5.1316]
[1609817513656,0.0931,31965.0,31915.0,0.2745]
[1609817513857,0.0933,31964.0,31931.0,3.5849]
[1609817514057,0.0933,31964.0,31945.0,0.14372]
[1609817514255,0.10968,31966.0,31941.0,0.0928]
[1609817514457,0.10968,31966.0,31941.0,0.23514]
[1609817515255,0.10968,31966.0,31953.0,0.13632608]
[1609817515957,0.10968,31966.0,31949.0,0.093]
[1609817516357,0.0946,31965.0,31949.0,0.093]
[1609817516557,0.0934,31964.0,31949.0,0.093]
[1609817517257,0.13632608,31950.0,31949.0,0.093]
[1609817517457,0.13632608,31950.0,31940.0,0.13632608]
[1609817517659,0.12199,31951.0,31931.0,3.5849]
[1609817517858,0.12199,31951.0,31931.0,0.10107]
[1609817518460,0.12199,31951.0,31932.0,0.0947]
[1609817519262,0.12199,31951.0,31949.0,0.13632608]
[1609817519664,0.12199,31951.0,31949.0,0.22922608]
[1609817521066,0.12199,31951.0,31949.0,0.13632608]
[1609817521268,0.12199,31951.0,31932.0,0.0947]
[1609817521667,0.12199,31951.0,31950.0,0.13632608]
[1609817521866,0.12199,31951.0,31950.0,0.22962608]
[1609817522468,0.0937,31958.0,31950.0,0.22962608]
[1609817523068,0.0508,31958.0,31950.0,0.22962608]
[1609817523367,0.2708,31965.0,31950.0,0.22962608]
[1609817523766,0.2708,31965.0,31964.0,0.13632608]
[1609817524969,0.3656,31965.0,31964.0,0.13632608]
[1609817525770,0.2708,31965.0,31964.0,0.13632608]
[1609817526772,0.3635,31965.0,31964.0,0.13632608]
[1609817527672,0.49982608,31965.0,31964.0,0.13632608]
[1609817527973,0.3635,31965.0,31964.0,0.13632608]
[1609817528173,0.0927,31965.0,31964.0,0.13632608]
[1609817528575,0.10968,31966.0,31964.0,0.13632608]
[1609817528773,0.61591043,31985.0,31965.0,0.0939]
[1609817528975,0.14406,31985.0,31965.0,0.0939]
[1609817529173,0.47202897,31991.0,31965.0,0.0939]
[1609817529374,0.47272089,31994.0,31965.0,0.0939]
[1609817529776,0.13632608,31990.0,31988.0,0.13632608]
[1609817529973,0.32858608,31990.0,31988.0,0.13632608]
[1609817530975,0.09856,31990.0,31981.0,3.5235]
[1609817531774,0.09856,31990.0,31989.0,0.13632608]
[1609817533477,0.09856,31990.0,31968.0,4.3309]
[1609817533677,0.09856,31990.0,31986.0,0.13632608]
[1609817535078,0.47492574,32000.0,31986.0,0.13632608]
[1609817535680,0.13632608,31987.0,31986.0,0.13632608]
[1609817536080,0.28543608,31987.0,31986.0,0.13632608]
[1609817542886,0.28543608,31987.0,31966.0,0.0934]
[1609817543086,0.28543608,31987.0,31964.0,5.10259]
[1609817543286,0.14911,31987.0,31964.0,5.10259]
[1609817543485,0.47729758,32000.0,31964.0,4.9975]
[1609817543885,0.47729758,32000.0,31975.0,0.13632608]
[1609817544086,0.57272528,32001.0,31975.0,0.13632608]
[1609817544087,0.47624209,31993.0,31975.0,0.13632608]
[1609817544286,0.59453209,31993.0,31975.0,0.13632608]
[1609817544890,0.59453209,31993.0,31964.0,4.9975]
[1609817545688,0.59453209,31993.0,31965.0,0.0938]
[1609817545888,0.59453209,31993.0,31977.0,0.13632608]
[1609817546291,0.11829,31993.0,31977.0,0.13632608]
[1609817547792,0.11829,31993.0,31984.0,0.13632608]
[1609817549294,0.4786322,31999.0,31984.0,0.13632608]
[1609817549793,0.13632608,31985.0,31984.0,0.13632608]
[1609817550095,0.29100608,31985.0,31984.0,0.13632608]
[1609817552397,0.15468,31985.0,31968.0,0.09973]
[1609817552598,0.15468,31985.0,31966.0,4.7938]
[1609817553799,0.15468,31985.0,31984.0,0.13632608]
[1609817555399,0.01618167,31999.0,31984.0,0.13632608]
[1609817555804,0.01618167,31999.0,31988.0,0.13632608]
[1609817556605,0.01618914,32000.0,31988.0,0.13632608]
[1609817557807,0.48102569,32001.0,31988.0,0.13632608]
[1609817557808,0.49722016,32001.0,31988.0,0.13632608]
[1609817558001,0.13632608,31991.0,31988.0,0.13632608]
[1609817558301,0.25097608,31991.0,31988.0,0.13632608]
[1609817561505,0.11465,31991.0,31988.0,0.13632608]
[1609817563509,0.13632608,31998.0,31988.0,0.13632608]
[1609817563909,0.13632608,31998.0,31997.0,0.13632608]
[1609817565309,0.12993,32006.0,31997.0,0.13632608]
[1609817565711,0.01631437,32012.0,31997.0,0.13632608]
[1609817565912,0.01631437,32012.0,31991.0,3.5841]
[1609817566111,0.17674437,32012.0,31991.0,3.5841]
[1609817566410,0.17674437,32012.0,32007.0,0.13632608]
[1609817566911,0.16043,32012.0,32007.0,0.13632608]
[1609817568513,0.13632608,32008.0,32007.0,0.13632608]
[1609817571118,0.16043,32012.0,32007.0,0.13632608]
[1609817571316,0.50200514,32025.0,32007.0,0.13632608]
[1609817571916,0.50200514,32025.0,32009.0,5.0339]
[1609817572517,0.50200514,32025.0,32014.0,0.13632608]
[1609817573720,0.50200514,32025.0,32009.0,5.0339]
[1609817573919,0.62960514,32025.0,32009.0,5.0339]
[1609817574119,0.62960514,32025.0,31992.0,0.0927]
[1609817574320,0.62960514,32025.0,32000.0,4.9928]
[1609817574521,0.62960514,32025.0,32012.0,0.13632608]
[1609817575021,0.62960514,32025.0,32000.0,4.9928]
[1609817575421,0.0163411,32024.0,32000.0,4.9928]
[1609817575923,0.1276,32025.0,32000.0,4.9928]
[1609817576523,0.1276,32025.0,32008.0,0.13632608]
[1609817578526,0.1276,32025.0,32015.0,0.13632608]
[1609817579029,0.29974523,32028.0,32015.0,0.13632608]
[1609817579228,0.50186457,32028.0,32015.0,0.13632608]
[1609817579627,0.01634945,32029.0,32015.0,0.13632608]
[1609817580030,0.01634541,32028.0,32015.0,0.13632608]
[1609817580229,0.16268541,32028.0,32015.0,0.13632608]
[1609817580630,0.13632608,32016.0,32015.0,0.13632608]
[1609817581032,0.29188608,32016.0,32015.0,0.13632608]
[1609817583133,0.29188608,32016.0,31984.0,0.0925]
[1609817583934,0.2963,32015.0,31984.0,0.0925]
[1609817584536,0.13632608,31998.0,31997.0,0.13632608]
[1609817585536,0.2963,32015.0,31981.0,0.0951]
[1609817586138,0.2963,32015.0,31971.0,2.07156364]
[1609817586337,3.6709,32007.0,31971.0,2.07156364]
[1609817586538,3.79837,32007.0,31979.0,0.13632608]
[1609817586737,3.79837,32007.0,31979.0,0.12666]
[1609817586938,0.12747,32007.0,31979.0,0.12666]
[1609817587139,4.3445,31995.0,31979.0,0.12666]
[1609817587339,0.11259,31995.0,31979.0,0.12666]
[1609817587738,0.11259,31995.0,31967.0,0.1433]
[1609817588138,0.11259,31995.0,31960.0,4.9524]
[1609817588538,0.11259,31995.0,31975.0,0.13632608]
[1609817588940,0.6414,31994.0,31975.0,0.13632608]
[1609817589539,0.6414,31994.0,31960.0,4.9524]
[1609817590041,0.11259,31995.0,31957.0,0.14796]
[1609817590239,0.2735,31994.0,31952.0,2.07494938]
[1609817590641,0.2829,31993.0,31950.0,0.10787]
[1609817590839,0.13632608,31962.0,31958.0,0.13632608]
[1609817593344,0.13632608,31962.0,31940.0,2.0759406]
[1609817593545,0.13632608,31962.0,31934.0,2.16906413]
[1609817593946,0.13632608,31962.0,31934.0,0.0933]
[1609817594746,0.13632608,31962.0,31934.0,2.16745288]
[1609817594946,0.12809,31968.0,31957.0,0.13632608]
[1609817595146,0.12809,31968.0,31945.0,0.10245]
[1609817596146,0.2786,31975.0,31945.0,0.10245]
[1609817596948,0.2786,31975.0,31959.0,0.13632608]
[1609817597450,0.2786,31975.0,31945.0,0.10245]
[1609817597650,0.38898,31975.0,31945.0,0.10245]
[1609817598952,0.38898,31975.0,31957.0,0.13632608]
[1609817600956,0.13632608,31958.0,31957.0,0.13632608]
[1609817601155,0.29128608,31958.0,31957.0,0.13632608]
[1609817602257,0.29128608,31958.0,31945.0,0.10245]
[1609817602258,0.15496,31958.0,31945.0,0.10245]
[1609817602660,0.15496,31958.0,31937.0,4.574]
[1609817602858,0.15496,31958.0,31932.0,2.0705932]
[1609817603260,0.15496,31958.0,31930.0,3.6062]
[1609817603860,0.15496,31958.0,31931.0,0.0942]
[1609817604060,0.15496,31958.0,31930.0,3.6062]
[1609817604963,0.15496,31958.0,31948.0,0.13632608]
[1609817606366,0.11038,31975.0,31949.0,0.0942]
[1609817606569,4.0087,31974.0,31948.0,0.13632608]
[1609817606966,0.13632608,31952.0,31948.0,0.13632608]
[1609817613875,0.14482,31957.0,31948.0,0.13632608]
[1609817614078,0.0993,31974.0,31948.0,0.13632608]
[1609817614278,0.2971,31976.0,31948.0,0.13632608]
[1609817614480,0.2971,31976.0,31950.0,4.9963]
[1609817615079,0.13632608,31967.0,31962.0,0.13632608]
[1609817615279,0.26934608,31967.0,31962.0,0.13632608]
[1609817615480,0.13302,31967.0,31939.0,0.23894]
[1609817617080,0.13302,31967.0,31963.0,0.13632608]
[1609817619185,0.26934608,31967.0,31963.0,0.13632608]
[1609817620683,0.13302,31967.0,31963.0,0.13632608]
[1609817621083,0.13632608,31984.0,31963.0,0.13632608]
[1609817621284,0.13632608,31984.0,31963.0,0.87192608]
[1609817622483,5.07359,31995.0,31963.0,0.87192608]
[1609817622685,0.11259,31995.0,31963.0,0.13632608]
[1609817622883,0.293,32006.0,31963.0,0.13632608]
[1609817623083,0.293,32006.0,31991.0,0.13632608]
[1609817623484,0.50507614,32014.0,31991.0,0.13632608]
[1609817624687,0.2857,32015.0,31991.0,0.13632608]
[1609817625086,0.2857,32015.0,32008.0,0.13632608]
[1609817626493,0.2857,32015.0,31997.0,0.11876]
[1609817626691,0.42432,32015.0,31997.0,0.11876]
[1609817627490,0.13632608,31998.0,31997.0,0.11876]
[1609817628494,0.13632608,31998.0,31970.0,4.1238]
[1609817628894,0.13632608,31998.0,31965.0,2.06132202]
[1609817629096,4.1893,31995.0,31961.0,2.06218476]
[1609817629495,4.1893,31995.0,31970.0,0.13632608]
[1609817630097,4.1893,31995.0,31960.0,0.11268]
[1609817630495,4.1893,31995.0,31950.0,0.0924]
[1609817631397,4.1893,31995.0,31975.0,0.13632608]
[1609817631600,0.12083,32000.0,31975.0,0.13632608]
[1609817632298,0.12083,32000.0,31974.0,0.0942]
[1609817633202,0.12083,32000.0,31974.0,0.8075]
[1609817633404,0.12083,32000.0,31997.0,0.13632608]
[1609817633602,0.27,32008.0,31981.0,0.12106]
[1609817637406,0.27,32008.0,31986.0,0.13632608]
[1609817637606,0.27,32008.0,31981.0,0.12106]
[1609817637807,0.39543,32008.0,31981.0,0.12106]
[1609817638607,0.39543,32008.0,31974.0,0.7133]
[1609817639508,0.39543,32008.0,31982.0,0.13632608]
[1609817641409,0.39543,32008.0,31990.0,0.13632608]
[1609817643509,0.39543,32008.0,31996.0,0.13632608]
[1609817644113,5.173,32006.0,31973.0,0.16022]
[1609817645114,5.173,32006.0,31972.0,4.2048]
[1609817645514,5.173,32006.0,31990.0,0.13632608]
[1609817647419,0.13632608,31991.0,31990.0,0.13632608]
[1609817647818,0.14087,31999.0,31990.0,0.13632608]
[1609817648718,0.14087,31999.0,31982.0,0.12716]
[1609817649520,0.14087,31999.0,31988.0,0.13632608]
[1609817651520,0.13632608,31990.0,31988.0,0.13632608]
[1609817653620,0.12542608,31990.0,31988.0,0.13632608]
[1609817654023,0.14087,31999.0,31988.0,0.13632608]
[1609817654223,0.39543,32008.0,31988.0,0.13632608]
[1609817654422,0.39543,32008.0,31988.0,0.87832608]
[1609817655523,0.39543,32008.0,31994.0,0.13632608]
[1609817657627,0.39543,32008.0,32001.0,0.13632608]
[1609817659526,0.13632608,32003.0,32001.0,0.13632608]
[1609817659928,0.13182608,32003.0,32001.0,0.13632608]
[1609817660131,0.13182608,32003.0,31990.0,0.0927]
[1609817660330,0.13182608,32003.0,31984.0,0.0947]
[1609817660531,0.13182608,32003.0,31982.0,0.12716]
[1609817660731,0.13182608,32003.0,31981.0,4.5922]
[1609817661531,0.39543,32008.0,32000.0,0.13632608]
[1609817663134,0.39543,32008.0,31996.0,4.1007]
[1609817663635,0.39543,32008.0,32005.0,0.13632608]
[1609817665636,0.13632608,32006.0,32005.0,0.13632608]
[1609817666036,0.27,32008.0,31996.0,4.1007]
[1609817667638,0.27,32008.0,32006.0,0.13632608]
[1609817669640,0.13632608,32007.0,32006.0,0.13632608]
[1609817671940,0.13862,32015.0,32006.0,0.13632608]
[1609817672341,0.2906,32031.0,32006.0,0.13632608]
[1609817673441,0.2906,32031.0,31996.0,4.1007]
[1609817673641,0.42766,32031.0,31996.0,4.1007]
[1609817673842,0.42766,32031.0,32015.0,0.13632608]
[1609817674947,0.5632,32029.0,32015.0,0.13632608]
[1609817675145,0.5632,32029.0,31996.0,4.1007]
[1609817675146,0.42766,32031.0,31992.0,0.15629]
[1609817675346,4.8889,32015.0,31986.0,2.07174494]
[1609817675546,0.13377,32016.0,31986.0,2.07174494]
[1609817675763,4.2521,32000.0,31986.0,2.07174494]
[1609817675947,0.19746,32008.0,31986.0,2.07174494]
[1609817676147,0.13632608,31987.0,31986.0,2.07174494]
[1609817676349,0.13632608,31987.0,31984.0,2.26129623]
[1609817676757,0.13632608,31987.0,31967.0,2.07395234]
[1609817676954,3.5284,31986.0,31967.0,2.07395234]
[1609817677349,3.5284,31986.0,31963.0,0.10174]
[1609817677548,3.5284,31986.0,31960.0,2.07413687]
[1609817678148,3.5284,31986.0,31975.0,0.13632608]
[1609817678549,3.5284,31986.0,31964.0,0.15992]
[1609817679351,0.289,31989.0,31964.0,0.15992]
[1609817680352,0.289,31989.0,31976.0,0.13632608]
[1609817682354,0.289,31989.0,31980.0,0.13632608]
[1609817682753,0.289,31989.0,31971.0,0.12672]
[1609817684256,4.2872,31984.0,31974.0,0.13632608]
[1609817684555,4.2872,31984.0,31971.0,0.12672]
[1609817685656,4.2872,31984.0,31964.0,0.15992]
[1609817686156,4.2872,31984.0,31957.0,2.07984317]
[1609817686357,4.2872,31984.0,31967.0,0.13632608]
[1609817688259,4.2872,31984.0,31971.0,0.13632608]
[1609817690263,0.13632608,31972.0,31971.0,0.13632608]
[1609817692363,0.15543,31983.0,31965.0,0.12974]
[1609817692764,0.15543,31983.0,31956.0,2.07888083]
[1609817692963,0.15543,31983.0,31973.0,0.13632608]
[1609817694065,0.15543,31983.0,31965.0,0.13648]
[1609817694867,0.15543,31983.0,31970.0,0.13632608]
[1609817695467,4.2872,31984.0,31970.0,0.13632608]
[1609817696867,0.13632608,31971.0,31970.0,0.13632608]
[1609817701273,0.13632608,31971.0,31965.0,0.13648]
[1609817701473,0.13632608,31971.0,31955.0,2.07683587]
[1609817702976,0.10854,31979.0,31964.0,0.13632608]
[1609817703175,4.2872,31984.0,31964.0,0.24440608]
[1609817703778,0.289,31989.0,31964.0,0.10808]
[1609817703977,3.5415,31973.0,31959.0,0.11493]
[1609817705080,0.13632608,31960.0,31948.0,0.13632608]
[1609817705481,0.13632608,31960.0,31933.0,2.6431749]
[1609817705482,4.2845,31953.0,31942.0,2.07543221]
[1609817706180,5.2289,31946.0,31942.0,2.07543221]
[1609817706583,5.2289,31946.0,31942.0,0.07413221]
[1609817706780,0.14094,31956.0,31942.0,0.07413221]
[1609817706980,0.13632608,31943.0,31942.0,0.07413221]
[1609817707682,0.13632608,31943.0,31933.0,0.13632608]
[1609817708981,0.13632608,31934.0,31933.0,0.13632608]
[1609817709582,0.13632608,31934.0,31930.0,2.26547358]
[1609817710487,0.13632608,31934.0,31918.0,2.26480414]
[1609817710985,4.3719,31951.0,31930.0,0.13632608]
[1609817711184,4.3719,31951.0,31930.0,0.25777608]
[1609817711785,4.3719,31951.0,31930.0,0.12145]
[1609817712989,0.13632608,31931.0,31930.0,0.12145]
[1609817714288,4.0156,31935.0,31930.0,0.12145]
[1609817714888,0.13486,31946.0,31930.0,0.12145]
[1609817715089,4.61662608,31931.0,31930.0,0.12145]
[1609817716089,4.61662608,31931.0,31912.0,0.13632608]
[1609817716289,0.13632608,31931.0,31902.0,2.2559904]
[1609817716488,0.13632608,31931.0,31903.0,0.2864]
[1609817716688,4.791,31923.0,31903.0,0.44445]
[1609817717191,0.13632608,31904.0,31903.0,0.44445]
[1609817717691,4.60292608,31904.0,31903.0,0.44445]
[1609817718292,4.60292608,31904.0,31903.0,0.15805]
[1609817718892,4.60292608,31904.0,31887.0,2.05833858]
[1609817719094,0.13632608,31888.0,31887.0,2.05833858]
[1609817719693,3.5931,31897.0,31887.0,2.05833858]
[1609817719893,3.5931,31897.0,31887.0,2.16183858]
[1609817720994,0.12334,31911.0,31887.0,2.16183858]
[1609817721194,0.13632608,31888.0,31887.0,2.16183858]
[1609817721394,0.67802608,31888.0,31887.0,2.16183858]
[1609817721596,0.13632608,31888.0,31878.0,2.05994137]
[1609817721795,4.202,31882.0,31878.0,2.05994137]
[1609817723199,0.13632608,31879.0,31878.0,2.05994137]
[1609817723401,0.13632608,31879.0,31875.0,0.2896]
[1609817723802,0.27851608,31879.0,31875.0,0.2896]
[1609817724000,0.27851608,31879.0,31871.0,0.13632608]
[1609817725101,0.13632608,31872.0,31871.0,0.13632608]
[1609817725602,0.13632608,31872.0,31848.0,2.04839959]
[1609817726404,0.13632608,31872.0,31851.0,2.04868675]
[1609817726603,0.13632608,31872.0,31851.0,2.14848675]
[1609817726803,0.14689,31888.0,31851.0,2.14848675]
[1609817727003,0.14689,31888.0,31854.0,4.723]
[1609817727204,0.14689,31888.0,31883.0,0.13632608]
[1609817727405,0.10077,31895.0,31883.0,0.13632608]
[1609817727606,4.5855,31909.0,31875.0,0.15825]
[1609817729207,4.5855,31909.0,31881.0,0.13632608]
[1609817729406,4.5855,31909.0,31875.0,0.15825]
[1609817731215,0.285,31910.0,31875.0,0.15825]
[1609817731614,0.13632608,31876.0,31875.0,0.15825]
[1609817731817,0.13632608,31876.0,31864.0,0.13632608]
[1609817731818,0.24674608,31876.0,31864.0,0.13632608]
[1609817732617,0.24674608,31876.0,31851.0,0.0998]
[1609817733015,4.4826,31873.0,31837.0,0.0945]
[1609817733215,4.4826,31873.0,31834.0,2.03152408]
[1609817733616,0.13632608,31858.0,31854.0,0.13632608]
[1609817733817,0.11042,31876.0,31854.0,0.13632608]
[1609817734117,0.11042,31876.0,31854.0,0.24454608]
[1609817735619,0.13632608,31860.0,31854.0,0.10822]
[1609817737521,0.13632608,31855.0,31854.0,0.10822]
[1609817737923,3.9184,31863.0,31854.0,0.10822]
[1609817738923,3.9184,31863.0,31847.0,0.12808]
[1609817739126,0.10172,31868.0,31847.0,0.12808]
[1609817739323,4.5529,31853.0,31847.0,0.12808]
[1609817740425,0.13741,31861.0,31847.0,0.12808]
[1609817740824,0.13632608,31848.0,31847.0,0.12808]
[1609817741224,4.60992608,31848.0,31826.0,0.13632608]
[1609817741425,4.60992608,31848.0,31825.0,0.2763]
[1609817742025,4.4736,31848.0,31825.0,0.2763]
[1609817742226,0.13741,31861.0,31825.0,0.2763]
[1609817742828,0.13741,31861.0,31836.0,0.13632608]
[1609817743829,0.13741,31861.0,31826.0,4.8348]
[1609817744232,0.10172,31868.0,31825.0,0.2763]
[1609817744430,0.47449193,31916.0,31825.0,0.2763]
[1609817744631,4.0297,31897.0,31838.0,3.5203]
[1609817744831,0.13632608,31857.0,31855.0,0.13632608]
[1609817745232,0.13632608,31857.0,31838.0,3.5203]
[1609817745831,0.13632608,31857.0,31825.0,0.2763]
[1609817746031,0.13632608,31857.0,31827.0,4.9743]
[1609817746833,0.13632608,31846.0,31845.0,0.13632608]
[1609817747432,0.13739,31866.0,31845.0,0.13632608]
[1609817748635,0.13739,31866.0,31845.0,0.23905608]
[1609817748835,0.2987,31875.0,31845.0,0.23905608]
[1609817749236,0.2987,31875.0,31845.0,0.10273]
[1609817749735,0.2987,31875.0,31860.0,0.13632608]
[1609817750737,0.0934,31899.0,31860.0,0.13632608]
[1609817750936,0.2777,31898.0,31860.0,0.13632608]
[1609817751737,0.13632608,31861.0,31860.0,0.13632608]
[1609817756042,0.13632608,31861.0,31845.0,0.10273]
[1609817756243,0.13632608,31861.0,31842.0,4.6728]
[1609817756442,0.13632608,31861.0,31823.0,0.2969]
[1609817757745,0.13632608,31843.0,31839.0,0.13632608]
[1609817758745,0.13632608,31843.0,31833.0,3.6016]
[1609817759143,0.13117,31865.0,31833.0,3.6016]
[1609817759745,0.13117,31865.0,31850.0,0.13632608]
[1609817760146,0.2945,31873.0,31850.0,0.13632608]
[1609817761649,0.13632608,31860.0,31859.0,0.13632608]
[1609817762249,0.13632608,31860.0,31841.0,4.7438]
[1609817763652,0.13521,31872.0,31844.0,0.13632608]
[1609817763653,0.15608,31863.0,31844.0,0.13632608]
[1609817763852,0.15608,31863.0,31845.0,0.0954]
[1609817764452,0.15608,31863.0,31849.0,4.5135]
[1609817764653,0.13521,31872.0,31849.0,4.5135]
[1609817765453,0.15518,31879.0,31849.0,4.5135]
[1609817765655,0.15518,31879.0,31870.0,0.13632608]
[1609817767056,0.2945,31902.0,31870.0,0.13632608]
[1609817767757,0.2945,31902.0,31876.0,0.13632608]
[1609817769356,0.2945,31902.0,31876.0,0.76582608]
[1609817769556,0.2945,31902.0,31879.0,5.0457]
[1609817769756,0.2945,31902.0,31894.0,0.13632608]
[1609817769956,0.12334,31911.0,31894.0,0.13632608]
[1609817770163,0.01594887,31918.0,31894.0,0.13632608]
[1609817771861,0.01594887,31918.0,31880.0,0.2724]
[1609817772062,0.16293887,31918.0,31880.0,0.2724]
[1609817772463,0.14699,31918.0,31898.0,0.13632608]
[1609817774363,0.13632608,31899.0,31898.0,0.13632608]
[1609817775365,0.10441,31910.0,31898.0,0.13632608]
[1609817775965,0.14699,31918.0,31898.0,0.13632608]
[1609817776368,0.14699,31918.0,31897.0,4.8966]
[1609817776969,0.14699,31918.0,31916.0,0.13632608]
[1609817777271,0.48989863,31920.0,31916.0,0.13632608]
[1609817777773,0.01615367,31926.0,31916.0,0.13632608]
[1609817778373,0.01626642,31933.0,31916.0,0.13632608]
[1609817778972,0.13632608,31917.0,31916.0,0.13632608]
[1609817780073,0.13632608,31917.0,31897.0,4.8966]
[1609817780973,0.11358,31923.0,31910.0,0.13632608]
[1609817782977,0.13632608,31911.0,31910.0,0.13632608]
[1609817785881,0.11358,31923.0,31910.0,0.80612608]
[1609817786081,0.01624728,31930.0,31910.0,0.13632608]
[1609817786281,0.01624728,31930.0,31922.0,4.2198]
[1609817786481,0.57927187,31932.0,31890.0,0.0943]
[1609817786684,0.32647187,31932.0,31929.0,4.8797]
[1609817786883,0.52323508,31935.0,31890.0,0.0943]
[1609817787084,0.63708171,31938.0,31931.0,4.4997]
[1609817787285,0.29578235,31939.0,31937.0,0.13632608]
[1609817787483,0.20818256,31943.0,31937.0,0.13632608]
[1609817787685,0.10064829,31948.0,31937.0,0.13632608]
[1609817787884,1.76856825,31958.0,31937.0,0.13632608]
[1609817788084,1.14128672,32001.0,31965.0,3.5457]
[1609817788485,1.14151366,32011.0,31965.0,3.5457]
[1609817788684,1.14151366,32011.0,31965.0,3.07608316]
[1609817788884,1.14151366,32011.0,31937.0,0.13632608]
[1609817789084,1.28307366,32011.0,31973.0,3.9343]
[1609817789486,1.28307366,32011.0,31938.0,0.0941]
[1609817789684,0.13632608,31985.0,31984.0,0.13632608]
[1609817789886,0.13632608,31985.0,31950.0,3.905]
[1609817790286,0.14501,31989.0,31950.0,3.905]
[1609817790486,0.14501,31989.0,31950.0,4.01733]
[1609817790989,0.14501,31989.0,31951.0,0.0936]
[1609817791386,0.14307,31997.0,31951.0,0.0936]
[1609817791589,0.13632608,31992.0,31991.0,0.13632608]
[1609817792189,0.14307,31997.0,31991.0,0.13632608]
[1609817792692,0.14515,32004.0,31991.0,0.13632608]
[1609817792892,0.14515,32004.0,31987.0,4.667]
[1609817793293,0.14515,32004.0,31951.0,0.0944]
[1609817793695,0.14515,32004.0,31994.0,0.13632608]
[1609817794295,0.14515,32004.0,31981.0,4.5368]
[1609817795695,0.13632608,31993.0,31992.0,0.13632608]
[1609817797496,0.14643,31996.0,31992.0,0.13632608]
[1609817797698,0.28275608,31996.0,31992.0,0.13632608]
[1609817802602,0.14643,31996.0,31992.0,0.13632608]
[1609817802802,0.14515,32004.0,31992.0,0.13632608]
[1609817803003,0.093,32031.0,31992.0,0.13632608]
[1609817803804,0.093,32031.0,31997.0,0.13632608]
[1609817804005,0.0928,32037.0,31997.0,0.13632608]
[1609817805705,0.13632608,32017.0,32014.0,0.13632608]
[1609817806106,0.23869608,32017.0,32008.0,3.8359]
[1609817806305,0.23869608,32017.0,31950.0,0.11233]
[1609817806507,0.23869608,32017.0,31975.0,3.8802]
[1609817806707,0.10237,32017.0,31975.0,3.8802]
[1609817807609,0.10237,32017.0,31947.0,2.01856844]
[1609817807809,0.13632608,32014.0,32009.0,0.13632608]
[1609817809413,0.13632608,32014.0,32006.0,5.0101]
[1609817809713,0.13632608,32014.0,32011.0,0.13632608]
[1609817809913,0.13632608,32014.0,32006.0,5.0101]
[1609817811817,0.13632608,32007.0,32006.0,5.14642608]
[1609817812318,0.13632608,32007.0,32006.0,0.13632608]
[1609817813118,0.14586,32010.0,32006.0,0.13632608]
[1609817813918,0.28218608,32010.0,32006.0,0.69822608]
[1609817815221,0.10237,32017.0,32006.0,0.13632608]
[1609817815421,3.8099,32059.0,32009.0,3.867]
[1609817815622,3.8099,32059.0,31997.0,0.11436]
[1609817815623,0.1771,32060.0,31997.0,0.11436]
[1609817816021,0.1771,32060.0,32029.0,0.13632608]
[1609817816622,0.1771,32060.0,32023.0,5.1846]
[1609817816824,0.3312,32060.0,32023.0,5.1846]
[1609817818025,0.13632608,32024.0,32023.0,5.1846]
[1609817818425,0.12553,32029.0,32023.0,5.1846]
[1609817820128,0.12553,32029.0,32027.0,0.13632608]
[1609817820729,0.3312,32060.0,32027.0,0.13632608]
[1609817822031,0.3312,32060.0,32035.0,0.13632608]
[1609817822232,0.3312,32060.0,32036.0,0.6464]
[1609817824035,0.13632608,32037.0,32036.0,0.6464]
[1609817824937,0.13632608,32037.0,31997.0,0.11436]
[1609817825140,0.13632608,32037.0,32020.0,4.1867]
[1609817826039,0.13632608,32021.0,32020.0,4.1867]
[1609817826740,0.14353,32040.0,32020.0,4.1867]
[1609817828142,0.14353,32040.0,32027.0,0.13632608]
[1609817828343,0.14353,32040.0,32020.0,4.1867]
[1609817829447,5.1125,32056.0,32020.0,4.1867]
[1609817830051,0.13632608,32021.0,32020.0,4.1867]
[1609817834152,0.13632608,32021.0,32018.0,0.14007]
[1609817834351,0.13632608,32021.0,32019.0,4.197]
[1609817838454,0.13632608,32021.0,32017.0,0.13632608]
[1609817838856,0.10874,32031.0,32013.0,0.14043]
[1609817839156,4.4777,32039.0,32013.0,0.14043]
[1609817839357,0.2784,32051.0,32013.0,0.14043]
[1609817839557,0.2784,32051.0,32016.0,4.7606]
[1609817840160,0.13632608,32017.0,32016.0,4.7606]
[1609817841459,0.13808,32031.0,32016.0,4.7606]
[1609817842462,0.13632608,32017.0,32016.0,4.7606]
[1609817843464,0.13632608,32017.0,32013.0,0.1346]
[1609817844467,0.13632608,32017.0,32016.0,0.13632608]
[1609817844667,0.13808,32031.0,32016.0,0.13632608]
[1609817845468,0.73406153,32048.0,32016.0,0.13632608]
[1609817845667,0.73406153,32048.0,32020.0,4.8131]
[1609817845868,0.7344399,32050.0,32020.0,4.8131]
[1609817846569,1.01320313,32051.0,32022.0,0.13632608]
[1609817848473,0.13632608,32025.0,32022.0,0.13632608]
[1609817849270,0.13632608,32025.0,32013.0,0.1346]
[1609817849571,0.13632608,32025.0,32012.0,4.9848]
[1609817850473,0.13243,32034.0,32019.0,0.13632608]
[1609817852476,0.13632608,32022.0,32019.0,0.13632608]
[1609817854681,0.13632608,32022.0,32020.0,0.5885]